bitfinex/quotes_ETHUSD_20240824
["timestamp","ask_amount","ask_price","bid_price","bid_amount"]
[1724504752228,0.75739276,2758.1,2757.8,3.62598]
[1724504752483,1.27246559,2758.1,2757.8,3.62598]
[1724504752633,0.75739276,2758.0,2757.8,3.62598]
[1724504752830,1.27246559,2757.9,2757.6,3.62626]
[1724504753173,0.75739276,2757.9,2757.7,3.62609]
[1724504753330,0.75739276,2758.0,2757.7,3.62609]
[1724504754484,2.02985835,2758.1,2757.7,3.62609]
[1724504755227,1.27246559,2758.1,2757.6,3.62624]
[1724504755432,2.02985835,2758.1,2757.7,3.6262]
[1724504756681,2.02985835,2758.1,2757.3,0.1053555]
[1724504756682,1.27246559,2757.9,2757.4,3.62648]
[1724504756832,1.27246559,2757.9,2757.5,3.62646]
[1724504758183,1.27246559,2757.9,2757.3,3.7319655]
[1724504758346,1.27246559,2757.9,2757.4,3.62652]
[1724504759274,1.27246559,2757.9,2757.5,3.62645]
[1724504759636,3.54686559,2757.7,2757.3,3.7319655]
[1724504759836,3.54686559,2757.7,2757.4,3.6266]
[1724504760078,3.54686559,2757.7,2757.4,3.62659]
[1724504760776,3.54686559,2757.7,2757.3,7.3586255]
[1724504761135,3.54686559,2757.7,2757.3,3.7319655]
[1724504761360,3.54686559,2757.7,2757.4,3.62657]
[1724504762865,3.54686559,2757.7,2757.3,0.1053555]
[1724504763188,4.26414815,2757.7,2757.3,0.1053555]
[1724504764282,7.89042815,2757.7,2757.3,0.1053555]
[1724504764443,4.26414815,2757.7,2757.3,3.7320755]
[1724504764642,3.54686559,2757.7,2757.3,3.7320755]
[1724504764842,3.54686559,2757.7,2757.4,3.62658]
[1724504768137,2.2744,2757.7,2757.4,3.62658]
[1724504769259,2.2744,2757.7,2757.4,3.62653]
[1724504769441,7.45,2758.0,2757.6,3.62621]
[1724504769646,7.45,2758.0,2757.6,3.62627]
[1724504769829,7.45,2758.0,2757.9,3.62594]
[1724504770029,4.89770559,2758.5,2758.2,3.62544]
[1724504770030,7.45,2758.5,2758.2,3.62544]
[1724504770267,2.2823,2758.6,2757.9,1.27246559]
[1724504770268,2.2823,2758.6,2758.4,3.62518]
[1724504770465,9.7323,2758.9,2758.8,3.62476]
[1724504770677,2.2823,2759.3,2759.0,3.62439]
[1724504771549,2.2823,2759.3,2758.9,3.62459]
[1724504771933,2.2823,2759.3,2758.8,3.62464]
[1724504772127,2.2823,2759.3,2758.8,7.24932]
[1724504772442,2.2823,2759.3,2758.9,3.62452]
[1724504772831,7.45,2759.4,2759.1,3.62429]
[1724504773232,7.45,2759.4,2759.0,3.62446]
[1724504773576,7.45,2759.4,2758.9,3.6246]
[1724504774375,11.07397,2759.4,2758.9,3.6246]
[1724504775450,7.45,2759.4,2758.9,3.6246]
[1724504776398,7.45,2759.4,2758.9,3.62455]
[1724504776531,7.45,2759.4,2759.0,3.6244]
[1724504777128,7.45,2759.4,2759.1,3.62436]
[1724504777573,7.45,2759.4,2759.1,3.62429]
[1724504778482,2.315,2759.6,2758.9,0.362455]
[1724504778633,3.62345,2759.8,2759.3,3.62401]
[1724504780437,3.62358,2759.7,2759.1,7.2486]
[1724504780781,3.62358,2759.7,2759.1,3.62424]
[1724504780966,3.6238,2759.6,2759.1,3.62424]
[1724504785496,3.6238,2759.6,2759.1,7.24853]
[1724504785990,7.24702,2759.8,2759.2,3.62423]
[1724504786380,3.62345,2759.8,2759.2,3.62423]
[1724504786770,7.24697,2759.8,2759.2,3.62423]
[1724504786970,3.62345,2759.8,2759.2,3.62423]
[1724504787501,7.24697,2759.8,2759.2,3.62423]
[1724504787727,3.62345,2759.8,2759.2,3.62423]
[1724504790790,3.62345,2759.8,2759.3,3.6241]
[1724504791130,9.765,2759.9,2759.3,3.6241]
[1724504791336,9.765,2759.9,2759.5,3.62382]
[1724504791493,2.315,2759.9,2759.5,3.62382]
[1724504794412,5.93833,2759.9,2759.3,7.24807]
[1724504794618,1.27252361,2759.8,2759.3,7.24807]
[1724504794938,4.89599361,2759.8,2759.3,3.62402]
[1724504795302,4.89599361,2759.8,2759.3,7.24806]
[1724504796454,4.89599361,2759.8,2759.3,3.62402]
[1724504797128,4.89599361,2759.8,2759.3,7.24803]
[1724504797513,4.89599361,2759.8,2759.3,3.62401]
[1724504798730,1.27252361,2759.6,2759.3,3.62401]
[1724504803626,1.27252361,2759.6,2759.1,3.62427]
[1724504804031,1.27252361,2759.6,2759.0,2.3202]
[1724504804032,1.27252361,2759.4,2758.9,3.62454]
[1724504804237,1.27252361,2759.4,2759.0,3.62442]
[1724504806966,1.27252361,2759.4,2759.1,3.62434]
[1724504809774,1.27252361,2759.4,2758.4,7.44]
[1724504809775,3.62557,2758.2,2757.3,0.1053555]
[1724504809982,1.27252361,2757.9,2757.3,0.1053555]
[1724504810329,1.27252361,2757.7,2757.3,0.1053555]
[1724504810640,0.75362126,2758.0,2757.3,0.1053555]
[1724504811737,4.37946126,2758.0,2757.3,0.1053555]
[1724504811938,1.15269831,2757.9,2757.3,0.1053555]
[1724504812257,1.90631957,2757.9,2757.3,0.1053555]
[1724504812952,1.15269831,2757.9,2757.3,0.1053555]
[1724504813272,1.90631957,2757.9,2757.3,0.1053555]
[1724504813435,1.15269831,2757.9,2757.3,0.1053555]
[1724504814390,1.90631957,2757.9,2757.3,0.1053555]
[1724504815872,5.53225957,2757.9,2757.3,0.1053555]
[1724504816074,0.55321596,2757.8,2757.3,0.1053555]
[1724504817183,0.75362126,2758.1,2757.4,2.4901]
[1724504817390,0.75362126,2758.4,2757.4,2.4901]
[1724504817745,0.75362126,2758.5,2757.4,2.4901]
[1724504817941,0.18840532,2758.4,2757.4,3.11231355]
[1724504818449,3.81369532,2758.4,2757.5,3.62647]
[1724504819498,0.75362126,2758.5,2757.7,2.4901]
[1724504819699,0.75362126,2758.7,2758.0,3.62581]
[1724504819849,3.62479,2758.8,2758.0,3.62581]
[1724504820044,8.20362126,2758.9,2757.9,2.4901]
[1724504820045,3.625,2758.7,2757.9,2.4901]
[1724504820277,3.62506,2758.6,2757.9,3.464332]
[1724504821342,3.62476,2758.8,2757.9,7.090272]
[1724504821539,3.6249,2758.7,2757.9,7.090272]
[1724504821739,7.45,2758.9,2758.1,3.05830772]
[1724504821979,7.45,2758.9,2758.3,3.62532]
[1724504822201,11.07464,2758.9,2758.2,2.4901]
[1724504823345,7.45,2758.9,2758.2,6.11562]
[1724504823880,4.37793126,2759.2,2758.3,3.69790959]
[1724504824042,3.62437,2759.1,2758.4,4.24396096]
[1724504825919,3.62437,2759.1,2758.5,2.2676]
[1724504826512,7.45,2759.3,2758.7,3.6248]
[1724504827966,11.07411,2759.3,2758.5,5.89267]
[1724504828176,12.543908,2759.3,2758.5,5.89267]
[1724504828687,12.543908,2759.3,2758.5,9.51773]
[1724504828917,12.543908,2759.3,2758.6,3.62502]
[1724504829118,11.07411,2759.3,2758.6,3.62502]
[1724504831006,11.07411,2759.3,2758.6,3.62494]
[1724504832976,3.62425,2759.2,2758.6,3.62494]
[1724504833716,7.45,2759.3,2758.7,3.62488]
[1724504833936,7.45,2759.3,2758.8,0.724982]
[1724504834232,11.07414,2759.3,2758.8,0.724982]
[1724504835277,11.07414,2759.3,2758.7,3.62488]
[1724504836679,11.07414,2759.3,2758.7,3.6248]
[1724504837082,3.62424,2759.2,2758.6,3.62499]
[1724504837733,14.69835,2759.3,2758.6,3.62499]
[1724504838031,11.07414,2759.3,2758.6,3.62499]
[1724504838232,11.07414,2759.3,2758.6,4.6386401]
[1724504838399,11.07414,2759.3,2758.7,3.62488]
[1724504839843,11.07414,2759.3,2758.7,7.24976]
[1724504840133,11.07414,2759.3,2758.7,3.62488]
[1724504840342,11.07414,2759.3,2758.8,2.2963]
[1724504840940,1.13043189,2759.7,2759.2,2.2963]
[1724504841082,8.20362126,2759.8,2759.4,3.62387]
[1724504841283,0.75362126,2759.8,2759.6,3.6237]
[1724504841497,0.75362126,2760.1,2759.6,3.6237]
[1724504841700,0.55070831,2760.0,2759.4,7.24771]
[1724504842032,4.37668126,2760.1,2759.5,3.6238]
[1724504842234,7.99985126,2760.1,2759.4,3.62384]
[1724504842524,3.62326,2760.0,2759.4,3.62384]
[1724504845838,3.62334,2759.9,2759.4,3.62384]
[1724504849199,3.62334,2759.9,2759.2,5.92041]
[1724504849422,3.62334,2759.9,2759.2,6.81828177]
[1724504849608,3.62334,2759.9,2759.3,3.62401]
[1724504850238,3.62334,2759.9,2759.4,3.62396]
[1724504853045,3.62334,2759.9,2759.3,3.6241]
[1724504855602,3.62346,2759.8,2759.3,3.6241]
[1724504856392,3.62346,2759.8,2759.3,4.66836318]
[1724504856593,3.62332,2759.9,2759.3,4.66829318]
[1724504857133,3.62332,2759.9,2759.3,8.29231318]
[1724504857343,3.62332,2759.9,2759.3,8.29230318]
[1724504857546,0.75362126,2760.1,2759.3,1.04426318]
[1724504857729,3.62299,2760.2,2759.6,3.62363]
[1724504858050,3.62286,2760.3,2759.7,3.62354]
[1724504858549,3.62286,2760.3,2759.7,4.89543013]
[1724504859224,3.62286,2760.3,2759.8,2.2663]
[1724504859430,3.62286,2760.3,2759.7,4.89543013]
[1724504859431,2.4643,2760.2,2758.9,3.0]
[1724504859649,1.27189013,2759.9,2759.4,2.2663]
[1724504859963,4.37683126,2760.0,2759.4,2.2663]
[1724504860842,1.13043189,2760.1,2759.4,5.89026]
[1724504860843,4.37670126,2760.1,2759.4,5.89026]
[1724504861145,5.68686383,2760.1,2759.4,2.2663]
[1724504862106,0.75362126,2760.0,2759.4,2.2663]
[1724504863438,0.75362126,2759.9,2759.4,2.2663]
[1724504864261,0.75362126,2759.8,2759.4,2.2663]
[1724504865069,0.75362126,2759.9,2759.4,2.2663]
[1724504865264,0.75362126,2759.8,2759.4,2.2663]
[1724504867424,0.75362126,2759.7,2759.4,2.2663]
[1724504870252,0.75362126,2759.7,2759.4,5.89025]
[1724504871350,0.75362126,2759.7,2759.4,0.951426]
[1724504871595,0.75362126,2759.8,2759.6,3.62371]
[1724504871794,0.75362126,2759.9,2759.7,6.00177]
[1724504872092,0.75362126,2760.0,2759.8,3.62344]
[1724504874046,0.75362126,2760.0,2759.7,2.3783]
[1724504874887,0.75362126,2760.0,2759.7,6.00179]
[1724504878950,0.75362126,2760.0,2759.8,3.62341]
[1724504879185,0.75362126,2760.0,2759.8,3.62337]
[1724504879350,0.75362126,2760.0,2759.9,7.24662]
[1724504879567,0.75362126,2760.2,2760.0,3.62318]
[1724504879952,0.75362126,2760.3,2760.0,3.62318]
[1724504880707,0.75362126,2760.3,2760.0,7.2463]
[1724504880862,0.75362126,2760.3,2760.0,3.62312]
[1724504881056,0.75362126,2760.3,2759.9,2.3783]
[1724504881301,0.75362126,2760.1,2759.8,3.62336]
[1724504881609,0.75362126,2760.0,2759.8,3.62336]
[1724504883603,0.75362126,2760.0,2759.8,7.24673]
[1724504883965,0.75362126,2760.0,2759.8,3.62336]
[1724504884167,0.75362126,2760.0,2759.8,7.24672]
[1724504884404,0.75362126,2760.0,2759.9,3.62331]
[1724504884995,0.75362126,2760.1,2760.0,3.62318]
[1724504885315,1.13043189,2760.2,2760.0,3.62318]
[1724504885911,1.13043189,2760.2,2759.9,6.05131]
[1724504886111,0.75771013,2760.0,2759.9,6.05131]
[1724504887207,0.75771013,2760.1,2759.9,6.05131]
[1724504887926,0.75771013,2760.1,2760.0,3.62318]
[1724504888536,0.75771013,2760.1,2760.0,7.24636]
[1724504889465,0.75771013,2760.2,2760.1,3.62305]
[1724504891918,0.75771013,2760.2,2760.1,7.2461]
[1724504892117,0.75771013,2760.2,2760.1,8.34070723]
[1724504892358,0.75771013,2760.3,2760.2,3.62292]
[1724504893431,0.75771013,2760.4,2760.3,3.62279]
[1724504893861,1.13043189,2760.5,2760.3,3.62279]
[1724504894243,0.75747577,2760.4,2760.3,3.62279]
[1724504894452,0.75740304,2760.4,2760.3,3.62279]
[1724504894932,0.75740304,2760.4,2760.2,4.89486225]
[1724504895133,0.75740304,2760.3,2760.2,3.62289]
[1724504895488,0.75740304,2760.4,2760.2,3.62289]
[1724504895633,0.75740304,2760.4,2760.3,3.62279]
[1724504896648,0.75740304,2760.4,2760.3,5.92109]
[1724504897268,0.75740304,2760.5,2760.3,5.92109]
[1724504897464,0.75740304,2760.5,2760.4,4.89463225]
[1724504897782,0.75740304,2760.6,2760.5,3.62253]
[1724504898765,1.13043189,2760.9,2760.5,3.62253]
[1724504898766,0.75740304,2760.8,2760.5,3.62253]
[1724504898933,0.75740304,2760.8,2760.5,3.62245]
[1724504899134,0.75740304,2760.8,2760.6,3.62228]
[1724504899430,0.75019204,2760.8,2760.6,3.62228]
[1724504899876,0.75019204,2760.8,2760.7,3.62226]
[1724504900057,0.75019204,2760.8,2760.5,3.62245]
[1724504900260,0.75019204,2760.8,2760.6,3.62232]
[1724504901585,1.13043189,2761.0,2760.6,3.62232]
[1724504902158,1.13043189,2761.0,2760.6,4.89429225]
[1724504902694,1.13043189,2761.0,2760.7,5.97683]
[1724504903455,1.13043189,2761.1,2760.7,5.97678]
[1724504903657,1.13043189,2761.2,2760.8,5.61895748]
[1724504904080,1.13043189,2761.2,2760.9,3.622]
[1724504904299,1.13043189,2761.3,2760.9,3.622]
[1724504904502,1.13043189,2761.4,2760.9,3.622]
[1724504904671,1.13043189,2761.4,2760.9,3.62193]
[1724504904876,1.13043189,2761.4,2760.9,3.62192]
[1724504905574,1.13043189,2761.4,2760.9,7.24384]
[1724504906001,1.13043189,2761.4,2761.0,3.62186]
[1724504908505,1.13043189,2761.5,2761.0,3.62186]
[1724504909266,0.75575998,2761.3,2761.0,3.62186]
[1724504910462,0.75575998,2761.4,2761.0,3.62186]
[1724504911214,0.75575998,2761.3,2761.0,3.62186]
[1724504911380,0.75575998,2761.4,2761.0,3.62186]
[1724504913379,0.75575998,2761.4,2761.0,7.24363]
[1724504913576,0.75575998,2761.4,2761.1,2.4776]
[1724504913985,0.75575998,2761.4,2761.1,6.09933]
[1724504915708,0.75575998,2761.4,2761.1,3.62173]
[1724504917175,0.75575998,2761.4,2761.2,3.6216]
[1724504917569,0.75575998,2761.5,2761.2,3.6216]
[1724504919722,0.75575998,2761.5,2761.3,2.4776]
[1724504920678,8.20575998,2761.9,2761.5,2.4776]
[1724504921023,3.15395998,2762.3,2761.9,3.62069]
[1724504921235,0.75575998,2762.2,2761.9,3.62069]
[1724504921528,3.15395998,2762.3,2761.9,3.6206]
[1724504921680,0.75575998,2762.4,2761.9,3.6206]
[1724504922388,11.73439187,2762.5,2761.9,3.6206]
[1724504922619,10.60395998,2762.5,2761.9,3.6206]
[1724504922927,10.60395998,2762.5,2761.9,6.0458]
[1724504924703,8.20575998,2762.5,2761.9,6.0458]
[1724504925415,7.45,2762.5,2762.1,3.6204]
[1724504927108,7.45,2762.5,2761.9,6.04578]
[1724504927298,7.45,2762.5,2762.0,3.62055]
[1724504929937,5.64753223,2762.6,2762.5,0.015487]
[1724504930997,9.64207414,2762.6,2762.5,0.015487]
[1724504931194,12.01847414,2762.6,2762.5,0.015487]
[1724504935484,0.75434292,2762.7,2762.5,2.391187]
[1724504935786,5.12671253,2762.9,2762.6,0.36631593]
[1724504935787,4.37380292,2762.9,2762.6,0.36631593]
[1724504936074,3.61952,2762.8,2762.5,0.015487]
[1724504936421,4.37386292,2762.8,2762.3,2.3757]
[1724504938487,3.61952,2762.8,2762.3,2.3757]
[1724504938688,4.37386292,2762.8,2762.3,3.10248923]
[1724504944223,1.27197225,2762.5,2762.1,2.4281]
[1724504945024,3.61979,2762.6,2762.1,2.4281]
[1724504945885,2.02631517,2762.7,2762.2,3.62027]
[1724504946090,0.75434292,2762.7,2762.3,2.4281]
[1724504946789,0.75484115,2762.7,2762.3,2.4281]
[1724504947415,0.75484115,2762.6,2762.3,2.4281]
[1724504947575,0.75484115,2762.7,2762.3,2.4281]
[1724504948017,0.75484115,2762.7,2762.3,3.52215223]
[1724504948334,0.75484115,2762.8,2762.4,3.61997]
[1724504949182,0.75484115,2762.8,2762.3,2.4281]
[1724504949420,2.0268134,2762.7,2762.3,2.4281]
[1724504949797,0.75484115,2762.6,2762.3,2.4281]
[1724504950131,4.37450115,2762.7,2762.3,2.4281]
[1724504950828,0.75484115,2762.6,2762.3,2.4281]
[1724504951918,0.75484115,2762.7,2762.3,2.4281]
[1724504953415,0.75484115,2762.6,2762.3,2.4281]
[1724504955430,0.75484115,2762.5,2762.3,2.4281]
[1724504956398,0.75484115,2762.5,2762.3,6.04825]
[1724504956601,0.75484115,2762.6,2762.4,3.61997]
[1724504957519,0.75484115,2762.6,2762.3,0.966861]
[1724504957721,0.75484115,2762.5,2762.2,3.62027]
[1724504957950,0.75339284,2762.5,2762.2,3.62027]
[1724504958459,0.75339284,2762.5,2762.3,2.421]
[1724504958660,0.75339284,2762.5,2762.3,6.04117]
[1724504958960,0.75339284,2762.5,2762.3,7.007323]
[1724504959457,1.13226172,2762.6,2762.3,7.007323]
[1724504960761,1.13226172,2762.5,2762.3,6.04117]
[1724504961465,1.13226172,2762.4,2762.3,6.04117]
[1724504962958,1.13226172,2762.5,2762.3,6.0411]
[1724504963361,1.13226172,2762.5,2762.4,3.62004]
[1724504964464,1.5096823,2762.6,2762.4,3.62004]
[1724504965261,1.4941963,2762.6,2762.4,3.62004]
[1724504965467,1.88915171,2762.7,2762.4,3.62004]
[1724504965667,1.88915171,2762.6,2762.4,3.62004]
[1724504966388,1.88915171,2762.5,2762.4,3.62004]
[1724504966537,1.88915171,2762.5,2762.4,4.586151]
[1724504967987,1.88915171,2762.5,2762.4,0.966111]
[1724504968848,1.88915171,2762.5,2762.4,4.586151]
[1724504969055,1.88915171,2762.7,2762.5,2.4933]
[1724504969232,9.88295239,2763.2,2762.6,3.61977]
[1724504969233,1.88915171,2762.8,2762.6,3.61977]
[1724504969436,1.88915171,2762.9,2762.6,3.61977]
[1724504970885,1.89562541,2762.9,2762.6,3.61977]
[1724504971390,1.89562541,2763.1,2762.8,4.84148225]
[1724504971568,2.27475049,2763.4,2762.8,4.84148225]
[1724504971569,1.13707164,2762.9,2762.8,4.84148225]
[1724504972139,1.13707164,2762.9,2762.8,4.66495123]
[1724504972343,1.13707164,2762.9,2762.8,1.09544123]
[1724504972537,1.13707164,2762.9,2762.7,6.11293]
[1724504972968,1.13707164,2762.8,2762.7,2.4933]
[1724504973170,1.13707164,2762.8,2762.7,6.11294]
[1724504977079,2.47522909,2763.3,2762.9,3.61938]
[1724504977080,1.13707164,2763.0,2762.9,3.61938]
[1724504977279,1.13707164,2763.0,2762.9,5.48728025]
[1724504977280,1.89477332,2763.0,2762.9,5.48728025]
[1724504977600,0.75770168,2763.1,2763.0,3.61925]
[1724504977748,2.4863,2763.0,2762.4,1.27197225]
[1724504977948,0.75753195,2762.7,2762.3,5.96005]
[1724504978178,0.75753195,2762.7,2762.4,3.62002]
[1724504978485,0.75753195,2762.6,2762.4,3.62002]
[1724504979148,0.75753195,2762.6,2762.5,3.6199]
[1724504981672,0.75753195,2762.6,2762.5,7.2398]
[1724504982169,0.75753195,2762.6,2762.5,9.5797]
[1724504982489,0.75753195,2762.6,2762.5,10.83592803]
[1724504983584,0.75753195,2762.6,2762.5,12.10790028]
[1724504983772,0.75753195,2762.7,2762.6,7.23954]
[1724504983971,0.75753195,2762.8,2762.7,7.23928]
[1724504984212,1.13707164,2762.9,2762.8,3.61951]
[1724504985325,1.51561445,2763.0,2762.8,3.61951]
[1724504985618,1.51561445,2763.0,2762.9,6.04588]
[1724504985821,1.89377571,2763.2,2763.0,3.61925]
[1724504986038,1.89377571,2763.2,2763.0,3.61918]
[1724504986207,1.51518609,2763.1,2763.0,3.61918]
[1724504987340,1.51518609,2763.1,2763.0,7.23843]
[1724504987524,1.51518609,2763.1,2763.0,8.204936]
[1724504988375,1.89377571,2763.3,2763.0,8.204936]
[1724504988376,1.51518609,2763.2,2763.1,3.61912]
[1724504988805,1.51518609,2763.2,2763.1,5.87822]
[1724504989003,1.89377571,2763.3,2763.2,9.49708]
[1724504989004,1.89447574,2763.3,2763.2,9.49708]
[1724504989219,0.75780635,2763.3,2763.2,10.67063583]
[1724504989428,1.13666939,2763.4,2763.3,3.61886]
[1724504989628,1.13666939,2763.5,2763.4,3.61873]
[1724504990622,1.13666939,2763.6,2763.5,3.61859]
[1724504991574,1.13666939,2763.7,2763.5,3.61859]
[1724504991761,1.13666939,2763.7,2763.5,7.23718]
[1724504991964,1.13666939,2763.7,2763.5,7.23711]
[1724504992330,1.13666939,2763.7,2763.6,3.61846]
[1724504993540,1.13666939,2763.7,2763.6,4.568068]
[1724504993741,0.75678827,2763.7,2763.6,4.568068]
[1724504995198,0.75678827,2763.7,2763.6,3.61846]
[1724504995802,0.75678827,2763.7,2763.6,7.23692]
[1724504996613,0.75678827,2763.8,2763.7,3.61833]
[1724504997119,0.75645183,2763.9,2763.8,3.6182]
[1724504998064,1.13666939,2764.0,2763.8,7.23632]
[1724504998315,0.75626004,2763.9,2763.8,3.61812]
[1724505003379,0.75626004,2764.0,2763.8,3.61812]
[1724505003921,0.75626004,2764.0,2763.9,3.61807]
[1724505004421,0.75626004,2764.0,2763.7,3.6182]
[1724505004622,0.75626004,2764.0,2763.8,3.61819]
[1724505005727,0.75626004,2764.0,2763.9,3.61807]
[1724505006076,0.75626004,2764.1,2763.9,3.61807]
[1724505006621,0.75626004,2764.1,2764.0,3.61794]
[1724505006808,1.13666939,2764.2,2764.0,3.61794]
[1724505006809,0.70626004,2764.2,2764.0,3.61794]
[1724505007321,3.39676939,2764.4,2764.0,7.23588]
[1724505007532,3.39676939,2764.4,2764.0,3.61794]
[1724505007732,1.13666939,2764.4,2764.0,3.61794]
[1724505008508,1.13666939,2764.4,2764.0,7.23574]
[1724505009229,1.13666939,2764.4,2764.1,3.6178]
[1724505011628,1.13666939,2764.3,2764.1,3.6178]
[1724505016849,0.7562719,2764.2,2764.1,3.6178]
[1724505017270,0.7562719,2764.2,2764.0,3.61782]
[1724505017967,0.7562719,2764.2,2764.0,3.61794]
[1724505020056,0.7562719,2764.2,2764.0,6.00166]
[1724505021170,0.7562719,2764.2,2764.0,9.61952]
[1724505021531,0.7562719,2764.2,2764.0,6.00165]
[1724505023832,0.7562719,2764.2,2764.0,3.61785]
[1724505024978,0.7562719,2764.1,2764.0,3.61785]
[1724505027543,1.13666939,2764.2,2764.0,3.61785]
[1724505028094,1.13666939,2764.2,2764.1,2.3776]
[1724505028504,1.51518609,2764.3,2764.1,2.3776]
[1724505028662,1.51518609,2764.3,2764.1,5.99533]
[1724505028867,1.51518609,2764.3,2764.2,3.61768]
[1724505029585,1.8920874,2764.4,2764.2,3.61768]
[1724505030586,1.8920874,2764.3,2764.2,3.61768]
[1724505030897,1.8920874,2764.3,2764.1,2.3776]
[1724505031047,1.51527895,2764.2,2764.0,3.61786]
[1724505031250,1.8920874,2764.3,2763.9,3.61801]
[1724505031251,1.51527895,2764.1,2763.9,3.61801]
[1724505031450,1.13641599,2764.0,2763.9,3.61801]
[1724505033292,1.13641599,2764.0,2763.9,6.719231]
[1724505033594,1.51527895,2764.1,2763.9,6.719231]
[1724505033750,1.51527895,2764.1,2764.0,3.61794]
[1724505034473,1.89457837,2764.2,2764.0,3.61794]
[1724505034997,1.89457837,2764.1,2764.0,3.61794]
[1724505036295,1.89457837,2764.1,2763.9,2.3776]
[1724505036497,1.51687973,2764.0,2763.9,3.61806]
[1724505039019,1.89457837,2764.1,2763.9,3.61806]
[1724505040584,1.89457837,2764.1,2763.4,3.6187]
[1724505040585,2.347,2763.9,2763.0,5.3776]
[1724505040898,2.347,2763.9,2763.2,3.61892]
[1724505040899,1.13810851,2763.4,2763.2,3.61892]
[1724505041104,1.51747802,2763.3,2763.0,5.99673]
[1724505041252,1.13803829,2763.1,2763.0,5.99673]
[1724505041908,1.137516,2763.1,2763.0,5.99673]
[1724505042210,1.51738439,2763.2,2763.0,5.99673]
[1724505042375,1.51738439,2763.2,2763.1,3.61912]
[1724505043200,1.51738439,2763.3,2763.0,3.6192]
[1724505043505,1.51738439,2763.3,2762.9,3.61925]
[1724505043506,1.13707556,2763.2,2763.1,3.61912]
[1724505044112,1.51738439,2763.3,2763.1,3.61912]
[1724505044253,1.13674964,2763.2,2763.1,3.61912]
[1724505044898,0.75764898,2763.2,2763.1,9.56984]
[1724505045062,0.75764898,2763.3,2763.2,3.61899]
[1724505046398,1.13674964,2763.4,2763.1,5.95072]
[1724505046399,1.13674964,2763.4,2763.3,3.61886]
[1724505046708,1.13674964,2763.4,2763.3,7.23772]
[1724505046857,1.13674964,2763.4,2763.3,8.194652]
[1724505048411,1.13674964,2763.4,2763.3,4.575792]
[1724505048611,1.13674964,2763.4,2763.3,3.61886]
[1724505049103,1.51738439,2763.4,2763.1,5.95059]
[1724505049395,0.75738897,2763.2,2763.1,5.95059]
[1724505049808,0.75738897,2763.2,2763.1,9.56971]
[1724505050108,0.75738897,2763.3,2763.2,7.23798]
[1724505050308,0.75738897,2763.3,2763.2,8.194938]
[1724505052156,0.75738897,2763.4,2763.3,3.61886]
[1724505052522,0.75738897,2763.5,2763.3,3.61886]
[1724505052943,0.75738897,2763.5,2763.4,3.61873]
[1724505053143,0.75738897,2763.5,2763.4,10.3580278]
[1724505053459,0.75738897,2763.6,2763.5,3.61859]
[1724505053606,0.75738897,2763.7,2763.6,3.61846]
[1724505054231,0.75738897,2763.8,2763.6,3.61846]
[1724505054552,1.13608346,2763.9,2763.6,3.61846]
[1724505054553,0.75738897,2763.7,2763.6,3.61846]
[1724505059372,0.75738897,2763.7,2763.2,0.956958]
[1724505059512,0.75714616,2763.5,2763.2,4.575938]
[1724505059715,0.75714616,2763.4,2763.1,11.05907]
[1724505059965,0.75714616,2763.3,2763.1,11.05907]
[1724505061368,0.75714616,2763.3,2763.1,14.67811]
[1724505061534,0.75714616,2763.3,2763.1,14.67808]
[1724505061874,0.75714616,2763.3,2763.2,3.61899]
[1724505062522,0.75714616,2763.4,2763.2,3.61899]
[1724505062755,0.75714616,2763.4,2763.3,3.61886]
[1724505064572,0.75714616,2763.4,2763.3,9.58492]
[1724505064776,0.75714616,2763.6,2763.5,3.61859]
[1724505064923,1.13608346,2763.7,2763.6,3.61846]
[1724505065567,1.51738439,2763.8,2763.6,3.61846]
[1724505065874,1.13539024,2763.7,2763.6,3.61846]
[1724505066837,1.13539024,2763.7,2763.6,7.23692]
[1724505067000,1.13539024,2763.8,2763.7,5.96553]
[1724505067663,1.13539024,2763.8,2763.7,9.58386]
[1724505068174,0.7568611,2763.9,2763.8,7.2364]
[1724505070088,0.7568611,2764.0,2763.9,7.23614]
[1724505070375,1.13539024,2764.1,2764.0,3.61794]
[1724505070376,0.7568611,2764.1,2764.0,3.61794]
[1724505070607,0.7568611,2764.1,2764.0,4.341541]
[1724505071184,1.13539024,2764.2,2764.0,4.341541]
[1724505071381,0.75699065,2764.1,2764.0,4.341541]
[1724505072732,1.13539024,2764.1,2764.0,4.341541]
[1724505074132,0.75686496,2764.1,2764.0,6.817441]
[1724505074297,0.75686496,2764.2,2764.0,3.199501]
[1724505074495,1.13539024,2764.2,2764.1,4.42676433]
[1724505074742,1.13539024,2764.2,2764.1,3.61781]
[1724505075835,1.13539024,2764.3,2764.1,3.61781]
[1724505076325,1.13539024,2764.3,2764.1,7.23552]
[1724505076509,0.75681327,2764.2,2764.1,3.61771]
[1724505076870,1.13539024,2764.3,2764.1,3.61771]
[1724505077043,1.13539024,2764.2,2763.9,3.61799]
[1724505077349,0.75674502,2764.0,2763.9,3.61799]
[1724505077477,0.75674502,2764.0,2763.9,4.71640022]
[1724505077883,0.75674502,2764.1,2764.0,3.61794]
[1724505079390,1.13539024,2764.2,2764.0,3.61794]
[1724505079956,0.75669939,2764.1,2764.0,3.61794]
[1724505081385,1.13539024,2764.2,2764.0,3.61794]
[1724505081970,1.13539024,2764.1,2763.9,3.61806]
[1724505082270,0.75663212,2764.0,2763.7,3.61821]
[1724505082477,0.75663212,2764.0,2763.8,3.61819]
[1724505083143,0.75663212,2763.9,2763.8,3.61819]
[1724505083349,0.75663212,2764.0,2763.8,3.61819]
[1724505083579,0.75663212,2764.0,2763.9,3.61807]
[1724505084079,0.75663637,2764.0,2763.9,3.61807]
[1724505084384,1.13539024,2764.1,2763.9,3.61807]
[1724505084583,0.75665453,2764.0,2763.9,3.61807]
[1724505084767,1.13539024,2764.1,2763.9,3.61807]
[1724505085697,1.13539024,2764.1,2764.0,3.61794]
[1724505090341,3.92328439,2764.2,2763.9,3.61807]
[1724505090540,1.13546282,2764.0,2763.9,3.61807]
[1724505093302,1.13546282,2764.0,2763.8,3.6182]
[1724505094126,0.757312,2763.9,2763.8,3.6182]